Cogmind - Beta 14 @@@ ROGUE MODE // 2025.04.26 @ 22:28:02 // Winter2019/RPGLIKE Player: EREBUS79 Result: Destroyed by CE-20T(p) with EM Pulse Gun Performance ------------- Evolutions (0) 0 Regions Visited (4) 800 Robots Destroyed (77) 385 Value Destroyed (2545) 2545 Prototype IDs (13) 260 Alien Tech Used (0) 0 Bonus (127) 127 TOTAL SCORE: 4117 Bonus ------- High Alert Combat Kills 23 Registered with UFD 300 Friendly Fire -196 Cogmind --------- Core Integrity 0/1350 Matter 476/500 Energy 550/550 System Corruption 2% Temperature Cool (92) Movement Hovering (120) Ox1 Location -8/Scraptown Parts ------- > --- POWER (1) -------- Ion Engine > --- PROPULSION (1) --- Hover Unit > --- UTILITY (16) ----- Scrap Suit Heat Sink Structural Scanner Trap Scanner Improved Terrain Scanner Seismic Detector Makeshift Salvage Targeting Computer Recoil Stabilizer Makeshift Light Armor Plating Thermal Shield Scrapoid Pod > --- WEAPON (8) ------- Field Laser Field Laser Field Laser Proton Cannon Assault Cannon Heavy Flak Cannon Grenade Launcher > --- INVENTORY (8) ---- Improved Terrain Scanner EM Pulse Cannon DRS Beacon (Ready) Peak State ------------ > --- POWER ------------ Ion Engine > --- PROPULSION ------- Hover Unit > --- UTILITY ---------- Scrap Suit Scrap Suit Heat Sink Structural Scanner Trap Scanner Improved Terrain Scanner Seismic Detector Seismic Detector Recoil Stabilizer Hardened Medium Armor Plating Improved Light Armor Plating Thermal Shield Scrapoid Pod > --- WEAPON ----------- Field Laser Field Laser Field Laser Proton Cannon Assault Cannon Assault Cannon Heavy Flak Cannon Grenade Launcher > --- INVENTORY -------- Improved Terrain Scanner Improved Terrain Scanner Improved Terrain Scanner EM Pulse Cannon DRS Beacon [Rating: 81] Favorites ----------- Power Ion Engine Engine Ion Engine Propulsion Hover Unit Wheel Wheel Hover Unit Hover Unit Flight Unit VTOL Module Utility Improved Terrain Scanner Device Improved Terrain Scanner Processor Makeshift Salvage Targeting Computer Hackware Hacking Suite Protection Hardened Medium Armor Plating Weapon Field Laser Energy Gun Field Laser Energy Cannon EM Pulse Cannon Ballistic Gun Assault Rifle Ballistic Cannon Assault Cannon Launcher Grenade Launcher Build | -11 -10 -10 -8 -8 ------- Run | Yrd Mat Sub Rec Scr Slots Evolved 22 | 22 . . . . Power . | . . . . . Propulsion . | . . . . . Utility 15 | 15 . . . . Weapon 7 | 7 . . . . Parts Attached 53 | 11 4 3 19 16 Power 1 | 1 . . . . Engine 1 | 1 . . . . Core . | . . . . . Reactor . | . . . . . Propulsion 3 | 1 . . 1 1 Treads . | . . . . . Leg . | . . . . . Wheel 1 | 1 . . . . Hover 1 | . . . . 1 Flight 1 | . . . 1 . Utility 27 | 6 2 . 7 12 Device 19 | 6 . . 5 8 Storage . | . . . . . Processor 1 | . . . . 1 Hackware 1 | . 1 . . . Protection 6 | . 1 . 2 3 Artifact . | . . . . . Weapon 22 | 3 2 3 11 3 Energy Gun 10 | 1 1 2 6 . Energy Cannon 4 | . . 1 1 2 Ballistic Gun 2 | 2 . . . . Ballistic Cannon 5 | . . . 4 1 Launcher 1 | . 1 . . . Special Weapon . | . . . . . Impact Weapon . | . . . . . Slashing Weapon . | . . . . . Piercing Weapon . | . . . . . Special Melee Weapon . | . . . . . Unidentified Prototypes . | . . . . . Parts Lost 5 | . . 1 . 4 Power . | . . . . . Propulsion . | . . . . . Utility 4 | . . 1 . 3 Weapon 1 | . . . . 1 Highest Loss Streak 1 | . . 1 . 1 To Critical Strikes . | . . . . . Average Slot Usage (%) 82 | . 50 58 74 90 Engine 3 | . 3 3 3 3 Hover 1 | . . . . 2 Device 37 | . 23 23 32 41 Hackware 1 | . 2 3 3 . Protection 7 | . 2 2 2 9 Energy Gun 10 | . 6 11 11 11 Energy Cannon 2 | . . 1 3 3 Ballistic Gun 1 | . 7 7 . . Ballistic Cannon 9 | . . . 9 11 Launcher 2 | . 2 3 3 3 Peak Build Rating 81 | 16 22 28 52 81 Average Rating 60 | 7 20 24 42 74 On Entrance 23 | . 16 22 27 52 Naked Turns . | . . . . . Heaviest Build 78 | 15 23 39 62 78 Greatest Support 50 | 50 43 43 43 46 Greatest Overweight (x) 1 | . . . 1 1 Average Overweight (x) . | . . . . 1 Largest Inventory Capacity 8 | . . . . 8 Average Capacity 4 | . . . . 6 Most Carried 6 | . . . . 6 Average Carried 2 | . . . . 2 Final Capacity 8 | . . . . 8 Final Carried 3 | . . . . 3 Class Distribution -------------------- 80% | Wizard-Executioner 19% | Wizard-Scout Dominant Class ---------------- Wizard-Scout | -10/Materials Wizard-Scout | -10/Subcaves Wizard-Executioner | -8/Recycling Wizard-Executioner | -8/Scraptown Resources | -11 -10 -10 -8 -8 ----------- Run | Yrd Mat Sub Rec Scr Matter Collected 2689 | 458 324 156 355 1396 Remotely 1151 | 231 324 156 355 85 Salvage Created 3064 | 194 256 253 509 1852 Parts 212 | 19 25 29 22 117 Haulers Intercepted . | . . . . . Recyclers Shooed . | . . . . . Parts Field Recycled . | . . . . . Retrieved Matter . | . . . . . Parts Self-Destructed 12 | . . 12 . . Prevented . | . . . . . Kills | -11 -10 -10 -8 -8 ------- Run | Yrd Mat Sub Rec Scr Combat Hostiles Destroyed 55 | . 8 11 3 33 Guns 24 | . 5 5 1 13 Cannons 22 | . . . 2 20 AOE 9 | . 3 6 . . Classes Destroyed 18 | 2 4 2 2 8 Worker 1 | . . . . 1 Builder 2 | . . . 2 . Tunneler 6 | 5 1 . . . Recycler 5 | 1 . . 4 . Operator 3 | . 3 . . . Turret 2 | . . 2 . . Watcher 2 | . 2 . . . Swarmer 10 | . 6 4 . . Grunt 2 | . 2 . . . Sentry 3 | . . . 3 . Subdweller 7 | . . 7 . . Federalist 1 | . . . . 1 Explorer 3 | . . . . 3 Ranger 2 | . . . . 2 Guru 2 | . . . . 2 Scientist 1 | . . . . 1 Scrapper 13 | . . . . 13 Elite 12 | . . . . 12 Best Kill Streak 10 | 4 7 7 3 10 Combat Bots Only 9 | . 6 5 1 9 Max Kills in Single Turn 3 | 1 2 3 1 2 Gunslinging . | . . . . . Exploded 2 | . 1 2 . . Melee . | . . . . . Uniques/NPCs Destroyed 1 | . . . . 1 Triborg (-8/Scraptown) Combat | -11 -10 -10 -8 -8 -------- Run | Yrd Mat Sub Rec Scr Hostile Shots Fired 187 | . 33 32 . 122 Missed 58 | . 8 12 . 38 Damage Taken 2484 | . 188 180 . 2116 Core 1674 | . 138 126 . 1410 Absorbed by Shields . | . . . . . Redirected to Core 1537 | . 103 99 . 1335 Redirected to Shielding 69 | . . . . 69 Ignored by Resistances 616 | . 57 54 . 505 Regen/Repaired (Parts) 77 | . . . . 77 Core Remaining (%) 100 | 100 . . . . Volleys Fired 105 | 8 25 12 14 46 Largest 8 | 3 5 8 7 8 Hottest 435 | 80 160 360 385 435 Shots Fired 584 | 23 105 67 96 293 Gun 333 | 23 92 56 48 114 Cannon 229 | . . 4 48 177 Launcher 22 | . 13 7 . 2 Special . | . . . . . Kinetic 257 | 16 50 24 33 134 Thermal 254 | 7 42 36 55 114 Explosive 22 | . 13 7 . 2 Electromagnetic 51 | . . . 8 43 Robot Hit Streak 104 | 14 19 37 15 104 Robot Miss Streak 2 | . 2 1 1 1 Penetration Max . | . . . . . Secondary Targets 1 | . 1 . . . Max Gunslinging Chain 1 | . 1 . . . Shots Hit Robots 275 | 14 20 34 21 186 Core Hits 148 | 7 19 21 11 90 Critical Kills . | . . . . . Critical Parts Destroyed . | . . . . . Critical Strikes 11 | . 1 2 . 8 Burn 7 | . 1 2 . 4 Blast 3 | . . . . 3 Corrupt 1 | . . . . 1 Melee Attacks . | . . . . . Impact . | . . . . . Slashing . | . . . . . Piercing . | . . . . . Sneak Attacks . | . . . . . Combat Hostiles . | . . . . . Follow-up Attacks . | . . . . . Damage Inflicted 6871 | 177 562 1008 407 4717 Guns 3471 | 177 342 533 305 2114 Cannons 2653 | . . 68 102 2483 Explosions 736 | . 209 407 . 120 Melee . | . . . . . Ramming 11 | . 11 . . . Kinetic 2233 | 98 133 150 59 1793 Thermal 3141 | 79 209 451 288 2114 Explosive 736 | . 209 407 . 120 Electromagnetic 750 | . . . 60 690 Impact . | . . . . . Slashing . | . . . . . Piercing . | . . . . . Highest Corruption 1 | . . . . 1 Average Corruption 1 | . . . . 1 Corruption Purged . | . . . . . Corruption Blocked . | . . . . . Effects 1 | . . . . 1 Matter Fused 1 | . . . . 1 Overload Shots . | . . . . . Overflow Damage 46 | . 6 . . 40 Projectiles 40 | . . . . 40 Explosions 6 | . 6 . . . Melee . | . . . . . Knockbacks 4 | . 1 . . 3 Impact 1 | . 1 . . . Kinetic 3 | . . . . 3 Secondary . | . . . . . Self-Inflicted Damage 5 | . 5 . . . Shots . | . . . . . Rammed 1 | . 1 . . . Targets Rammed 1 | . 1 . . . Kicked . | . . . . . Crushed . | . . . . . Highest Temperature 304 | . . 78 248 304 Average Temperature 94 | . . 40 71 105 Received Heat Transfer 207 | . 51 66 . 90 Effects 1 | . . . . 1 Short Circuit 1 | . . . . 1 Siege Activations . | . . . . . Robots Corrupted . | . . . . . Combat Hostiles . | . . . . . Parts Fried . | . . . . . Impact Corruptions . | . . . . . Robots Melted . | . . . . . Combat Hostiles . | . . . . . Parts Melted 12 | . 2 1 . 9 Heat Transferred 5488 | 150 521 942 533 3342 Parts Sabotaged . | . . . . . Parts Stolen . | . . . . . Parts Stripped . | . . . . . Power Chain Reactions . | . . . . . Alert | -11 -10 -10 -8 -8 ------- Run | Yrd Mat Sub Rec Scr Peak Influence 577 | 30 577 . 376 . Initial 196 | . 19 . 196 . Average 264 | 13 324 . 268 . Maximum Alert Level 2 | . 2 . 1 . Low Security (%) 35 | 100 34 . 24 . Level 1 43 | . 11 . 75 . Level 2 20 | . 53 . . . Level 3 . | . . . . . Level 4 . | . . . . . Level 5 . | . . . . . High Security . | . . . . . Max Security . | . . . . . Squads Dispatched . | . . . . . Investigation . | . . . . . Extermination . | . . . . . Reinforcement . | . . . . . Assault . | . . . . . Garrison . | . . . . . Intercept . | . . . . . Searches Triggered . | . . . . . Construction Impeded . | . . . . . Haulers Reinforced . | . . . . . Active Scanning Responses . | . . . . . Cargo Convoy Interrupts . | . . . . . Stealth | -11 -10 -10 -8 -8 --------- Run | Yrd Mat Sub Rec Scr Distress Signals . | . . . . . Communications Jammed . | . . . . . Distress Signals . | . . . . . Times Spotted 65 | . 15 12 1 37 Peak Tracking Total 8 | . 4 5 1 8 Tactical Retreats 1 | . . . . 1 Traps | -11 -10 -10 -8 -8 ------- Run | Yrd Mat Sub Rec Scr Traps Triggered . | . . . . . Indirectly . | . . . . . Trap Hack Attempts . | . . . . . Triggered . | . . . . . Disarmed . | . . . . . Reprogrammed . | . . . . . Reused . | . . . . . Traps Extracted . | . . . . . Installed . | . . . . . Triggered . | . . . . . Machines | -11 -10 -10 -8 -8 ---------- Run | Yrd Mat Sub Rec Scr Machines Disabled 20 | . 11 2 4 3 Max in Single Turn 1 | . 1 1 1 1 Machines Repaired . | . . . . . Machines Dismantled . | . . . . . Machines Sabotaged . | . . . . . Overloaded Fab Kills . | . . . . . Hacking | -11 -10 -10 -8 -8 --------- Run | Yrd Mat Sub Rec Scr Machines Accessed 14 | . 5 1 4 4 Terminals 9 | . 5 . 4 . Fabricators . | . . . . . Repair Stations . | . . . . . Recycling Units . | . . . . . Scanalyzers . | . . . . . Garrison Access . | . . . . . Total Hacks 84 | . 35 4 25 20 Successful 78 | . 29 4 25 20 Failed 4 | . 4 . . . Catastrophic 2 | . 2 . . . Database Lockouts 2 | . 2 . . . Manual 1 | . 1 . . . Terminals 60 | . 35 . 25 . Fabricators . | . . . . . Repair Stations . | . . . . . Recycling Units . | . . . . . Scanalyzers . | . . . . . Garrison Access . | . . . . . Terminal Hacks 78 | . 29 4 25 20 Record 30 | . 11 4 3 12 Part Schematic 1 | . . . 1 . Robot Analysis 7 | . . . . 7 Prototype ID Bank 3 | . 1 . 2 . Level Access Points 1 | . 1 . . . Branch Access Points 1 | . . . 1 . Emergency Access Points 1 | . . . 1 . Machine Index 1 | . 1 . . . Terminal Index 1 | . . . 1 . Fabricator Index 1 | . . . 1 . Recycling Unit Index 1 | . . . 1 . Alert Level 6 | . 5 . 1 . Locate Traps 1 | . 1 . . . Dispatch Records 2 | . 2 . . . Maintenance Status 2 | . . . 2 . Security Status 1 | . . . 1 . Patrol Status 1 | . 1 . . . Investigation Status 2 | . 1 . 1 . Extermination Status 2 | . . . 2 . Assault Status 1 | . . . 1 . Recall Investigation 2 | . 1 . 1 . Recall Extermination 2 | . . . 2 . Recall Assault 1 | . . . 1 . Hauler Manifests 4 | . 2 . 2 . Zone Layout 2 | . 2 . . . Derelict Proto ID Bank 1 | . . . . 1 Fabricator Hacks . | . . . . . Repair Station Hacks . | . . . . . Recycling Unit Hacks . | . . . . . Scanalyzer . | . . . . . Garrison Access Hacks . | . . . . . Unauthorized Hacks . | . . . . . Terminals . | . . . . . Fabricators . | . . . . . Repair Stations . | . . . . . Recycling Units . | . . . . . Scanalyzers . | . . . . . Garrison Access . | . . . . . Data Cores Recovered 3 | . 3 . . . Used 2 | . 2 . . . Hacking Detections 4 | . 3 . 1 . Full Trace Events 1 | . 1 . . . Feedback Events . | . . . . . Feedback Blocked . | . . . . . Robot Schematics Acquired . | . . . . . Robots Built . | . . . . . Authchips . | . . . . . Time . | . . . . . Total Robot Build Rating . | . . . . . Part Schematics Acquired 1 | . . . 1 . Parts Built . | . . . . . Authchips . | . . . . . Time . | . . . . . Total Part Build Rating . | . . . . . Parts Repaired . | . . . . . Time . | . . . . . Parts Recycled . | . . . . . Recycled Matter . | . . . . . Retrieved Matter . | . . . . . Retrieved Components . | . . . . . Parts Scanalyzed . | . . . . . Part Schematics Acquired . | . . . . . Parts Damaged . | . . . . . Bothacking | -11 -10 -10 -8 -8 ------------ Run | Yrd Mat Sub Rec Scr Used RIF Installer . | . . . . . Robots Hacked . | . . . . . Non-combat . | . . . . . Combat . | . . . . . Robot Hacks Applied . | . . . . . Relay Couplers Released . | . . . . . Fabnet Peak Effective % . | . . . . . Robots Rewired . | . . . . . Allies Hacked . | . . . . . Hacks Repelled . | . . . . . Allies | -11 -10 -10 -8 -8 -------- Run | Yrd Mat Sub Rec Scr Total Allies . | . . . . . Largest Group . | . . . . . Highest-Rated Group . | . . . . . Highest-Rated Ally . | . . . . . Total Orders . | . . . . . Ally Attacks . | . . . . . Total Damage . | . . . . . Kills . | . . . . . Allies Corrupted . | . . . . . Allies Melted . | . . . . . Intel | -11 -10 -10 -8 -8 ------- Run | Yrd Mat Sub Rec Scr Robot Analysis Total 7 | . . . . 7 Derelict Logs Recovered . | . . . . . Drone Launches . | . . . . . Drone Recoveries . | . . . . . Exploration | -11 -10 -10 -8 -8 ------------- Run | Yrd Mat Sub Rec Scr Turns Passed 3536 | 91 355 144 476 2470 Spaces Moved 2952 | 60 525 180 455 1732 Core 1428 | 57 525 180 455 211 Treads . | . . . . . Legs . | . . . . . Wheels 3 | 3 . . . . Hover 1521 | . . . . 1521 Flight . | . . . . . Fastest Speed 50 | 50 50 50 50 100 Average Speed 94 | 51 50 50 84 117 Slowest Speed 120 | 80 50 50 100 120 Overloaded Moves . | . . . . . Propulsion Burnouts . | . . . . . Robots Hopped . | . . . . . Cave-ins Triggered . | . . . . . Exploration Rate (%) 54 | 3 75 19 84 89 Regions Visited 4 Branch Regions 3 Pre-discovered Areas 1 | . . 1 . . Known Exits Taken . | . . . . . Unknown Exits Taken 4 | 1 1 1 1 . Scrap Searched 4 | . . . . 4 Spaces Dug . | . . . . . Terrain Destroyed 146 | . 45 18 35 48 Melee . | . . . . . Projectile 69 | . . 2 35 32 AOE 77 | . 45 16 . 16 Terrain Rammed . | . . . . . Walls Destroyed . | . . . . . Machines Disabled . | . . . . . Actions | -11 -10 -10 -8 -8 --------- Run | Yrd Mat Sub Rec Scr Total 3392 | 98 556 201 502 2035 Wait 229 | 19 . 3 . 207 Move 2948 | 59 524 179 454 1732 Hop . | . . . . . Pick Up 1 | . . . . 1 Fast Attach 49 | 11 4 3 18 13 Attach . | . . . . . Detach 10 | . . . . 10 Swap 4 | . . . 1 3 Drop 21 | 1 . . 13 7 Fire 105 | 8 25 12 14 46 Melee . | . . . . . Ram 1 | . 1 . . . Kick . | . . . . . Crush . | . . . . . Escape Stasis . | . . . . . Rewire . | . . . . . Trap . | . . . . . Miscellaneous 24 | . 2 4 2 16 Route ------- -11/Scrapyard -10/Materials (discovered 6 exits: *Mat x3 / [*Min x2] / *Sub) -10/Subcaves -8/Recycling (discovered 2 exits: [*Fac] / *Scr) -8/Scraptown (discovered 1 exit: [*Fac]) History --------- Turn | Location | Event 1 | -11/Scrapyard | Upgraded with Utility slot (x15) 1 | -11/Scrapyard | Upgraded with Weapon slot (x7) 2 | -11/Scrapyard | Discovered new exit (range 18) 92 | -11/Scrapyard | Entered Materials 93 | -10/Materials | Discovered new exit (range 18) 128 | -10/Materials | Central database locked down 128 | -10/Materials | Central database locked down 188 | -10/Materials | Identified exit to Materials 255 | -10/Materials | Discovered new exit (range 22) 290 | -10/Materials | Reached level 2 314 | -10/Materials | Build established: Wizard-Scout 407 | -10/Materials | Discovered new exit (range 14) 447 | -10/Materials | Entered Subcaves 502 | -10/Subcaves | Ambushed by Subdwellers from Twisted Machinery 544 | -10/Subcaves | Visited Clippyterm 545 | -10/Subcaves | Learned location of Extension (-4) 545 | -10/Subcaves | Learned Factory fabricator intel 567 | -10/Subcaves | Discovered new exit (range 13) 571 | -10/Subcaves | Reached level 3 572 | -10/Subcaves | Disturbed a concealed Subdweller 591 | -10/Subcaves | Entered Recycling 630 | -8/Recycling | Reached level 4 845 | -8/Recycling | Discovered new exit (range 19) 1000 | -8/Recycling | Build established: Wizard-Executioner 1040 | -8/Recycling | Scanned before Scraplab entrance 1051 | -8/Recycling | Discovered new exit (range 11) 1054 | -8/Recycling | Entered Scraplab 1067 | -8/Recycling | Entered Scraptown 1203 | -8/Scraptown | Heard Great Nut preacher, LISTEN AND RECITE! 1259 | -8/Scraptown | Visited Bundlers 1347 | -8/Scraptown | Visited Comm Corps 1387 | -8/Scraptown | Visited UFD Registry 1387 | -8/Scraptown | Registered with UFD as "Matterblaster" 1416 | -8/Scraptown | Visited Derelict Rescue Squad 1428 | -8/Scraptown | Found DRS Beacon 1450 | -8/Scraptown | Visited Scrapoid Pod Storage 1457 | -8/Scraptown | Found Scrapoid Pod 1489 | -8/Scraptown | Visited Scrap Suit Storage 1497 | -8/Scraptown | Found Scrap Suit 1561 | -8/Scraptown | Visited Analyses Database 1589 | -8/Scraptown | Visited Research Penetration Think Tank 2037 | -8/Scraptown | Discovered new exit (range 5) 2083 | -8/Scraptown | Visited Science Guys 2126 | -8/Scraptown | Visited Science Testing Area 2161 | -8/Scraptown | Visited Curators Association 2191 | -8/Scraptown | Visited Abandonware Association 2206 | -8/Scraptown | Learned abandonware demo "OVRCLOCK.EXE" 2213 | -8/Scraptown | Learned abandonware demo "SHUTEYE.EXE" 2213 | -8/Scraptown | Learned abandonware demo "TRNCOAT.EXE" 3047 | -8/Scraptown | Attacked by Scraptown defenders 3146 | -8/Scraptown | Found Scrap Suit 3149 | -8/Scraptown | Found Scrap Suit 3228 | -8/Scraptown | Core integrity fell below 50% 3264 | -8/Scraptown | Core integrity fell below 20% 3270 | -8/Scraptown | Destroyed Triborg 3300 | -8/Scraptown | Found Scrap Suit 3429 | -8/Scraptown | Destroyed 8 combat bots 3514 | -8/Scraptown | Destroyed 9 combat bots 3537 | -8/Scraptown | Destroyed by CE-20T(p) with EM Pulse Gun Last Messages --------------- 03488_ Acquired 17 matter. 03493_ CG-CQG(j) destroyed. 03499_ Used Protomatter to restore core integrity (+27, depleted) 03500_ OX-676(k) destroyed. 03505_ System corrupted: Matter fused (-9). 03511_ Used Protomatter to restore core integrity (+27, depleted) 03513_ Used Protomatter to restore core integrity (+3, depleted) 03518_ Acquired 43 matter. 03522_ Scrap Suit cannibalized Imp. Deuterium Engine to repair Ion Engine. 03525_ Scrap Suit cannibalized Ovr. Pulse Rifle to repair Field Laser. 03529_ Destroyed Lgt. Ion Engine. 03529_ Mak. Spear melted. 03529_ RM-84N(x) destroyed. 03531_ Assault Cannon destroyed. 03533_ T5-8W3(x) knocked back. 03533_ Destroyed Imp. Terrain Scanner. 03535_ Protomatter-41 decays. 03536_ Critical hit (Impale). 03537_ Penetrated by Bolt. Map ----- +----------------------------------------------------+ | | | | | | | | | | | | | | | | | | | ?##?###########################??????????????????? | | ################################?#?#?????????????? | | ##################################???????????????? | | ######################################???????????? | | #####################################?#??????????? | | #####################################????????????? | | ########################################?????????? | | #######################################??????????? | | ############## ########################?#????????? | | ############## ##########################????????? | | ############## ######### ##############?????????? | | ############## ########;*;##############????????? | | ############## #######"!*!##############????????? | | ##""##########"!#######"=%=! ############???????? | | #""|"%"""###"#[=#*###!*[Eh [ #############???????? | | #"" "!!!"###;!=!!;##!![px!=##############????????? | | % *===!!*[=![%= @% ##########????????? | | % !![![!%%[!=%[=!%##############????????? | | #########;;!%%=%!##%=*!= # ; ############????????? | | ######### ###%%=!=#####!=! ###############???????? | | ##############[%#########################????????? | | #############*=#"""""""""""#############????????? | | #############"=%#""" X """""############?????????? | | "### ## #####= #"""" """############?????????? | | "#### # # ###%!#""!" "############?????????? | | [### # ###= !"""" """############?????????? | | "### ###*=#"" """"#############????????? | | "# ### !# ""########?##??????????? | | "## ### # " "" ""#########?#??????????? | | !### ## #&" "" ""#########????????????? | | "## #=!/#" #########????????????? | | "#"""""""""##%!# ? "#########????????????? | | ######## #####!=## ##################?#??????????? | | ######## ####"%!## #################?????????????? | | """""""" """""=*"" "## #####?#????????????? | | =[% [!! "## #####??????????????? | | =*%*%![ "## #####??????????????? | | %[!=== "## ######?????????????? | | *!* "## #####??????????????? | | ####??#?#??????????? | | """"""""""""" "## ######??#??????????? | +----------------------------------------------------+ Best States ------------- Heat Dissipation 95 Energy Generation 40 Energy Capacity 550 Matter Stores 500 Matter Capacity 500 Sight Range 32 Robot Scan Range 16 Terrain Scan Range 16 Terrain Scan Density 810 Armor Coverage 450 Resistance: KI 20 Resistance: TH 20 Resistance: EX 20 Weapon Shielding 66 Evasion (%) 50 Recoil Reduction 4 Salvage Targeting 4 Offensive Hacking 90 Defensive Hacking 80 Item Schematics ----------------- Stasis Canceller | -8/Recycling | Hacked Robot Schematics ------------------ None Fabricated ------------ Nothing Alien Tech Used ----------------- None Achievements -------------- None Challenges ------------ None RPGLIKE | -11 -10 -10 -8 -8 --------- Run | Yrd Mat Sub Rec Scr Levels Raised 3 | . 1 1 1 . XP Earned 8706 | 3000 1856 1600 1600 650 XP Spent 197020 | 185800 . 1380 . 9840 Upgrades 175 | 155 . 6 . 14 Utility Slot 15 | 15 . . . . Weapon Slot 7 | 7 . . . . Core Integrity 15 | 9 . . . 6 Heat Dissipation 10 | 10 . . . . Energy Generation 6 | 6 . . . . Energy Storage 6 | 6 . . . . Matter Storage 4 | 4 . . . . Mass Support 8 | 8 . . . . Inventory Capacity 8 | . . . . 8 Sight Range 16 | 16 . . . . Sensor Range 8 | 8 . . . . Terrain Scan Density 8 | 2 . 6 . . Ranged Accuracy 8 | 8 . . . . Hack Attack % 16 | 16 . . . . Hack Defense % 16 | 16 . . . . KI Resistance % 4 | 4 . . . . TH Resistance % 4 | 4 . . . . EX Resistance % 4 | 4 . . . . KI Damage % 4 | 4 . . . . TH Damage % 4 | 4 . . . . EX Damage % 4 | 4 . . . . Protomatter Created 931 | . 33 106 50 742 Integrity Restored 324 | . 27 54 27 216 Core 324 | . 27 54 27 216 Protomatter Decayed 193 | . . . . 193 Game ------ Seed AerolevLaserArticulator Manual? 0 Play Time 00:31:20 Cumulative 42.8 hours Start 2025.04.26 @ 21:56:51 End 2025.04.26 @ 22:28:02 Sessions 1 Manual Loads 0 Difficulty Rogue Special Mode Winter2019/RPGLIKE Game No. 29 Rogue 29 Adventurer 0 Explorer 0 Win Type - Total 0 Types 0/0/0/0/0/0/0/0/0 Lore% 28 Gallery% 21 Achievement% 100 Wizard Run 0 Options --------- Layout 0 ASCII 0 Keyboard 0 Movement Numpad Keybinds 0 Fullscreen 2 Font 14/Terminus Map View 36x27 Zoom Use 94% Tactical HUD 1 Map Filters NONE Filters NONE Steam 1 RUN: b498e4c8-cf5b-40fa-88bd-356de114a54c